fUST/lending_fUST_20250601
["ID","MTS","AMOUNT","RATE_DAILY","PERIOD"]
[363567846,1748770252263,-430.0,0.0002,2]
[363567848,1748770252273,-151.0,0.0002,2]
[363567850,1748770252281,-151.0,0.0002,2]
[363567852,1748770252291,-151.0,0.0002,2]
[363567854,1748770252301,-482.15,0.0002,2]
[363567856,1748770252310,-227.82757494,0.0002,2]
[363567858,1748770252319,-309.34168232,0.0002,2]
[363567860,1748770252330,-1703.33,0.0002,2]
[363567862,1748770252339,-151.0,0.0002,2]
[363567864,1748770252349,-430.0,0.0002,2]
[363567866,1748770252358,-151.0,0.0002,2]
[363567868,1748770252368,-398.16367928,0.0002,2]
[363567870,1748770252378,-866.2,0.0002,2]
[363567872,1748770252388,-430.0,0.0002,2]
[363567874,1748770252398,-1626.01,0.0002,2]
[363567876,1748770252407,-691.58,0.0002,2]
[363567878,1748770252417,-687.88,0.0002,2]
[363567880,1748770252427,-430.0,0.0002,2]
[363567882,1748770252436,-1139.26,0.0002,2]
[363567884,1748770252446,-562.78,0.0002,2]
[363567886,1748770252456,-503.99,0.0002,2]
[363567888,1748770252465,-151.0,0.0002,2]
[363567890,1748770252477,-430.0,0.0002,2]
[363567892,1748770252486,-1378.54,0.0002,2]
[363567894,1748770252496,-430.0,0.0002,2]
[363567896,1748770252506,-430.0,0.0002,2]
[363567898,1748770252515,-614.97,0.0002,2]
[363567900,1748770252524,-430.0,0.0002,2]
[363567902,1748770252533,-213.18,0.0002,2]
[363567904,1748770252543,-155.0,0.0002,2]
[363567916,1748770252636,-807.09,0.0002,2]
[363567918,1748770252653,-430.0,0.0002,2]
[363567920,1748770252667,-430.0,0.0002,2]
[363567922,1748770252677,-430.0,0.0002,2]
[363567924,1748770252687,-615.76,0.0002,2]
[363567926,1748770252696,-430.0,0.0002,2]
[363567928,1748770252706,-1397.15,0.0002,2]
[363567930,1748770252715,-12878.56,0.0002,2]
[363567932,1748770252725,-430.0,0.0002,2]
[363567934,1748770252736,-531.055359,0.0002,2]
[363567936,1748770252745,-592.13,0.0002,2]
[363567938,1748770252755,-248.739943,0.0002,2]
[363567940,1748770252765,-1526.316205,0.0002,2]
[363567943,1748770252775,-531.055359,0.0002,2]
[363567945,1748770252784,-248.739943,0.0002,2]
[363567947,1748770252794,-359.960833,0.0002,2]
[363567949,1748770252804,-1526.316205,0.0002,2]
[363567950,1748770252814,-895.25,0.0002,2]
[363567952,1748770252823,-359.960833,0.0002,2]
[363567954,1748770252833,-708.81,0.0002,2]
[363567956,1748770252843,-430.0,0.0002,2]
[363567958,1748770252852,-843.25276144,0.00020038,2]
[363567960,1748770252862,-823.0,0.00020047,2]
[363567963,1748770252872,-2496.84,0.00020097,2]
[363567965,1748770252881,-503.47785552,0.00020107,2]
[363567966,1748770252891,-500.0,0.00020107,2]
[363567969,1748770252901,-151.0,0.00020147,2]
[363567971,1748770252912,-153.04198,0.00020147,2]
[363567973,1748770252921,-153.04198,0.00020147,2]
[363567975,1748770252931,-342.48662,0.00020147,2]
[363567977,1748770252942,-342.48662,0.00020147,2]
[363567979,1748770252953,-151.0,0.00020147,2]
[363567981,1748770252963,-151.0,0.00020147,2]
[363567983,1748770252973,-475.959135,0.00020147,2]
[363567985,1748770252985,-475.959135,0.00020147,2]
[363567987,1748770252996,-151.0,0.00020147,2]
[363567989,1748770253005,-151.0,0.00020147,2]
[363567990,1748770253015,-161.262007,0.00020147,2]
[363567992,1748770253025,-161.262007,0.00020147,2]
[363567994,1748770253034,-299.041725,0.00020147,2]
[363567997,1748770253045,-299.041725,0.00020147,2]
[363567999,1748770253055,-712.082806,0.00020187,2]
[363568001,1748770253064,-151.0,0.000202,3]
[363568003,1748770253073,-173.65,0.00020273,2]
[363568005,1748770253082,-173.65,0.00020273,2]
[363568007,1748770253092,-151.0,0.00020273,2]
[363568009,1748770253101,-345.077216,0.00020273,2]
[363568011,1748770253111,-345.077216,0.00020273,2]
[363568013,1748770253120,-876.284792,0.00020273,2]
[363568015,1748770253130,-876.284792,0.00020273,2]
[363568017,1748770253139,-151.0,0.00020273,2]
[363568019,1748770253149,-603.885838,0.00020273,2]
[363568021,1748770253158,-603.885838,0.00020273,2]
[363568023,1748770253167,-232.75,0.00020273,2]
[363568025,1748770253176,-192.102102,0.00020273,2]
[363568027,1748770253185,-192.102102,0.00020273,2]
[363568029,1748770253195,-169.196033,0.00020273,2]
[363568031,1748770253204,-169.196033,0.00020273,2]
[363568033,1748770253214,-151.0,0.00020273,2]
[363568034,1748770253223,-151.0,0.00020273,2]
[363568036,1748770253234,-482.15,0.00020273,2]
[363568038,1748770253244,-151.0,0.00020273,2]
[363568041,1748770253253,-151.0,0.00020273,2]
[363568043,1748770253264,-1074.688167,0.00020273,2]
[363568044,1748770253274,-1074.688167,0.00020273,2]
[363568046,1748770253285,-151.0,0.00020273,2]
[363568049,1748770253296,-151.0,0.00020273,2]
[363568051,1748770253305,-1703.33,0.00020273,2]
[363568052,1748770253315,-430.0,0.00020273,2]
[363568055,1748770253325,-866.2,0.00020273,2]
[363568056,1748770253335,-430.0,0.00020273,2]
[363568059,1748770253344,-1626.01,0.00020273,2]
[363568060,1748770253354,-691.58,0.00020273,2]
[363568063,1748770253364,-687.88,0.00020273,2]
[363568065,1748770253374,-430.0,0.00020273,2]
[363568067,1748770253383,-1139.26,0.00020273,2]
[363568069,1748770253393,-562.78,0.00020273,2]
[363568071,1748770253403,-503.99,0.00020273,2]
[363568073,1748770253413,-430.0,0.00020273,2]
[363568075,1748770253422,-1378.54,0.00020273,2]
[363568077,1748770253432,-430.0,0.00020273,2]
[363568079,1748770253441,-430.0,0.00020273,2]
[363568081,1748770253453,-614.97,0.00020273,2]
[363568084,1748770253472,-430.0,0.00020273,2]
[363568087,1748770253488,-807.09,0.00020273,2]
[363568090,1748770253503,-430.0,0.00020273,2]
[363568092,1748770253519,-430.0,0.00020273,2]
[363568095,1748770253535,-615.76,0.00020273,2]
[363568098,1748770253550,-430.0,0.00020273,2]
[363568100,1748770253567,-1397.15,0.00020273,2]
[363568103,1748770253582,-12878.56,0.00020273,2]
[363568105,1748770253595,-430.0,0.00020273,2]
[363568108,1748770253612,-592.13,0.00020273,2]
[363568111,1748770253627,-248.739943,0.00020273,2]
[363568113,1748770253639,-248.739943,0.00020273,2]
[363568115,1748770253654,-895.25,0.00020273,2]
[363568118,1748770253671,-708.81,0.00020273,2]
[363568121,1748770253686,-430.0,0.00020273,2]
[363568123,1748770253704,-546.52,0.000203,2]
[363568126,1748770253722,-843.25276144,0.00020314,3]
[363568128,1748770253735,-12274.95709095,0.0002035,2]
[363568131,1748770253750,-151.0,0.0002035,2]
[363568134,1748770253768,-1526.316205,0.0002035,2]
[363568136,1748770253780,-1526.316205,0.0002035,2]
[363568138,1748770253794,-160.053727,0.0002049,3]
[363568141,1748770253808,-150.0,0.000205,30]
[363568143,1748770253820,-231.28369723,0.00020534,2]
[363568145,1748770253833,-151.0,0.00020547,2]
[363568148,1748770253846,-475.959135,0.00020547,2]
[363568150,1748770253859,-475.959135,0.00020547,2]
[363568152,1748770253872,-151.0,0.00020547,2]
[363568155,1748770253885,-151.0,0.00020547,2]
[363568157,1748770253897,-151.0,0.00020547,2]
[363568159,1748770253909,-482.15,0.00020547,2]
[363568161,1748770253922,-1703.33,0.00020547,2]
[363568164,1748770253935,-151.0,0.00020547,2]
[363568166,1748770253948,-430.0,0.00020547,2]
[363568168,1748770253964,-151.0,0.00020547,2]
[363568171,1748770253978,-866.2,0.00020547,2]
[363568173,1748770253993,-430.0,0.00020547,2]
[363568175,1748770254005,-1626.01,0.00020547,2]
[363568178,1748770254017,-691.58,0.00020547,2]
[363568180,1748770254030,-687.88,0.00020547,2]
[363568182,1748770254044,-430.0,0.00020547,2]
[363568185,1748770254056,-1139.26,0.00020547,2]
[363568187,1748770254069,-562.78,0.00020547,2]
[363568189,1748770254081,-503.99,0.00020547,2]
[363568192,1748770254094,-430.0,0.00020547,2]
[363568194,1748770254107,-1378.54,0.00020547,2]
[363568196,1748770254120,-430.0,0.00020547,2]
[363568199,1748770254133,-430.0,0.00020547,2]
[363568201,1748770254146,-614.97,0.00020547,2]
[363568203,1748770254158,-430.0,0.00020547,2]
[363568205,1748770254171,-807.09,0.00020547,2]
[363568208,1748770254184,-430.0,0.00020547,2]
[363568210,1748770254196,-430.0,0.00020547,2]
[363568212,1748770254210,-615.76,0.00020547,2]
[363568214,1748770254222,-430.0,0.00020547,2]
[363568217,1748770254240,-1397.15,0.00020547,2]
[363568219,1748770254253,-12878.56,0.00020547,2]
[363568221,1748770254268,-430.0,0.00020547,2]
[363568224,1748770254283,-531.055359,0.00020547,2]
[363568226,1748770254296,-592.13,0.00020547,2]
[363568228,1748770254311,-531.055359,0.00020547,2]
[363568231,1748770254325,-359.960833,0.00020547,2]
[363568233,1748770254339,-895.25,0.00020547,2]
[363568235,1748770254352,-359.960833,0.00020547,2]
[363568238,1748770254366,-708.81,0.00020547,2]
[363568240,1748770254381,-430.0,0.00020547,2]
[363568243,1748770254393,-155.0,0.00020548,2]
[363568245,1748770254407,-160.053727,0.00020561,2]
[363568247,1748770254419,-843.25276144,0.0002059,3]
[363568249,1748770254432,-197.454678,0.00020599,2]
[363568252,1748770254445,-248.739943,0.00020599,2]
[363568254,1748770254458,-1526.316205,0.00020599,2]
[363568256,1748770254471,-248.739938,0.00020599,2]
[363568259,1748770254488,-1526.316205,0.00020599,2]
[363568261,1748770254501,-543.59,0.000206,2]
[363568263,1748770254514,-60000.0,0.000206,5]
[363568265,1748770254523,-173.65,0.000206,2]
[363568267,1748770254533,-173.65,0.000206,2]
[363568269,1748770254542,-151.0,0.000206,2]
[363568271,1748770254552,-151.0,0.000206,2]
[363568288,1748770254712,-153.04198,0.000206,2]
[363568291,1748770254731,-153.041974,0.000206,2]
[363568292,1748770254741,-342.48662,0.000206,2]
[363568294,1748770254751,-342.486629,0.000206,2]
[363568297,1748770254762,-151.0,0.000206,2]
[363568299,1748770254771,-151.0,0.000206,2]
[363568301,1748770254783,-151.0,0.000206,2]
[363568302,1748770254793,-161.262007,0.000206,2]
[363568304,1748770254802,-161.262007,0.000206,2]
[363568306,1748770254811,-299.041725,0.000206,2]
[363568308,1748770254821,-299.041725,0.000206,2]
[363568310,1748770254831,-345.077216,0.000206,2]
[363568312,1748770254841,-345.077216,0.000206,2]
[363568314,1748770254850,-876.284792,0.000206,2]
[363568316,1748770254860,-876.284792,0.000206,2]
[363568318,1748770254870,-151.0,0.000206,2]
[363568320,1748770254880,-603.885838,0.000206,2]
[363568322,1748770254890,-603.885838,0.000206,2]
[363568324,1748770254900,-192.102102,0.000206,2]
[363568326,1748770254909,-192.102102,0.000206,2]
[363568328,1748770254918,-169.196033,0.000206,2]
[363568329,1748770254927,-169.196033,0.000206,2]
[363568331,1748770254937,-151.0,0.000206,2]
[363568333,1748770254951,-151.0,0.000206,2]
[363568335,1748770254961,-151.0,0.000206,2]
[363568337,1748770254971,-151.0,0.000206,2]
[363568339,1748770254983,-1074.688167,0.000206,2]
[363568341,1748770254995,-1074.688167,0.000206,2]
[363568343,1748770255005,-170.710618,0.000206,2]
[363568345,1748770255015,-151.0,0.000206,2]
[363568347,1748770255024,-848.61,0.000206,2]
[363568349,1748770255035,-314.88098828,0.000206,3]
[363568351,1748770255045,-151.0,0.000206,2]
[363568353,1748770255055,-151.0,0.000206,2]
[363568355,1748770255065,-212.80060342,0.000206,3]
[363568357,1748770255074,-531.055359,0.000206,2]
[363568359,1748770255084,-531.055359,0.000206,2]
[363568361,1748770255094,-359.960833,0.000206,2]
[363568363,1748770255103,-359.960833,0.000206,2]
[363568365,1748770255114,-160.053727,0.00020628,3]
[363568367,1748770255124,-448.7552678,0.00020655,2]
[363568369,1748770255134,-500.0,0.00020715,2]
[363568371,1748770255143,-22312.17223884,0.0002079,2]
[363568373,1748770255152,-151.0,0.0002079,2]
[363568375,1748770255162,-151.0,0.0002079,2]
[363568377,1748770255171,-151.0,0.0002079,2]
[363568379,1748770255181,-1526.316205,0.0002079,2]
[363568381,1748770255191,-1526.316205,0.0002079,2]
[363568383,1748770255200,-1217.373955,0.000208,5]
[363568384,1748770255210,-151.0,0.000208,2]
[363568386,1748770255220,-531.055359,0.000208,2]
[363568388,1748770255231,-531.055359,0.000208,2]
[363568390,1748770255241,-359.960833,0.000208,2]
[363568392,1748770255251,-359.960833,0.000208,2]
[363568394,1748770255260,-1000.0,0.0002082,5]
[363568396,1748770255270,-151.0,0.00020821,2]
[363568398,1748770255279,-475.959135,0.00020821,2]
[363568400,1748770255290,-475.959135,0.00020821,2]
[363568402,1748770255301,-482.15,0.00020821,2]
[363568404,1748770255310,-1703.33,0.00020821,2]
[363568406,1748770255320,-430.0,0.00020821,2]
[363568408,1748770255330,-866.2,0.00020821,2]
[363568410,1748770255340,-430.0,0.00020821,2]
[363568412,1748770255351,-1626.01,0.00020821,2]
[363568414,1748770255360,-691.58,0.00020821,2]
[363568416,1748770255369,-687.88,0.00020821,2]
[363568418,1748770255379,-451.67,0.00020821,2]
[363568420,1748770255388,-1139.26,0.00020821,2]
[363568422,1748770255398,-562.78,0.00020821,2]
[363568424,1748770255408,-503.99,0.00020821,2]
[363568426,1748770255417,-430.0,0.00020821,2]
[363568428,1748770255427,-1378.54,0.00020821,2]
[363568429,1748770255436,-430.0,0.00020821,2]
[363568432,1748770255447,-430.0,0.00020821,2]
[363568433,1748770255456,-614.97,0.00020821,2]
[363568435,1748770255466,-430.0,0.00020821,2]
[363568437,1748770255477,-807.09,0.00020821,2]
[363568440,1748770255488,-430.0,0.00020821,2]
[363568442,1748770255499,-315.06323822,0.00020821,2]
[363568443,1748770255509,-615.76,0.00020821,2]
[363568445,1748770255519,-430.0,0.00020821,2]
[363568447,1748770255529,-1397.15,0.00020821,2]
[363568449,1748770255540,-12878.56,0.00020821,2]
[363568451,1748770255549,-430.0,0.00020821,2]
[363568453,1748770255559,-592.13,0.00020821,2]
[363568455,1748770255570,-895.25,0.00020821,2]
[363568457,1748770255580,-708.81,0.00020821,2]
[363568459,1748770255590,-278.34,0.00020821,2]
[363568461,1748770255599,-1000.0,0.0002084,5]
[363568463,1748770255609,-1000.0,0.0002086,5]
[363568465,1748770255618,-843.25276144,0.00020866,4]
[363568467,1748770255628,-1000.0,0.0002088,5]
[363568469,1748770255637,-1000.0,0.000209,5]
[363568471,1748770255647,-500.0,0.00020915,2]
[363568473,1748770255656,-1000.0,0.0002092,5]
[363568475,1748770255666,-151.0,0.00020926,2]
[363568477,1748770255676,-603.885838,0.00020926,2]
[363568479,1748770255686,-603.885838,0.00020926,2]
[363568481,1748770255695,-192.102102,0.00020926,2]
[363568482,1748770255705,-192.102102,0.00020926,2]
[363568484,1748770255714,-22314.5431852,0.00020926,2]
[363568486,1748770255724,-637.5994859,0.00020932,2]
[363568488,1748770255735,-364.3782178,0.00020932,2]
[363568490,1748770255744,-364.3782178,0.00020932,2]
[363568492,1748770255754,-364.3782178,0.00020932,2]
[363568494,1748770255764,-364.3782178,0.00020932,2]
[363568496,1748770255773,-364.3782178,0.00020932,2]
[363568498,1748770255783,-681.7009523,0.00020932,2]
[363568500,1748770255793,-1000.0,0.0002094,5]
[363568502,1748770255803,-1000.0,0.0002096,5]
[363568504,1748770255812,-3329.12,0.00020971,2]
[363568506,1748770255822,-345.077216,0.0002098,2]
[363568508,1748770255832,-345.077216,0.0002098,2]
[363568510,1748770255842,-876.284792,0.0002098,2]
[363568512,1748770255851,-876.284792,0.0002098,2]
[363568514,1748770255861,-1500.0,0.0002098,7]
[363568515,1748770255870,-1500.0,0.0002098,7]
[363568517,1748770255881,-1500.0,0.0002098,7]
[363568518,1748770255891,-1500.0,0.0002098,7]
[363568519,1748770255902,-1500.0,0.0002098,7]
[363568520,1748770255912,-1500.0,0.0002098,7]
[363568521,1748770255923,-1500.0,0.0002098,7]
[363568522,1748770255934,-1500.0,0.0002098,7]
[363568523,1748770255944,-1500.0,0.0002098,7]
[363568524,1748770255956,-1500.0,0.0002098,7]
[363568525,1748770255966,-1500.0,0.0002098,7]
[363568526,1748770255976,-1500.0,0.0002098,7]
[363568527,1748770255987,-1500.0,0.0002098,7]
[363568528,1748770255998,-1500.0,0.0002098,7]
[363568529,1748770256008,-1500.0,0.0002098,7]
[363568530,1748770256018,-1500.0,0.0002098,7]
[363568531,1748770256027,-1500.0,0.0002098,7]
[363568532,1748770256038,-1500.0,0.0002098,7]
[363568533,1748770256048,-1500.0,0.0002098,7]
[363568534,1748770256059,-1500.0,0.0002098,7]
[363568535,1748770256069,-1500.0,0.0002098,7]
[363568536,1748770256078,-1500.0,0.0002098,7]
[363568537,1748770256088,-1500.0,0.0002098,7]
[363568538,1748770256097,-1500.0,0.0002098,7]
[363568539,1748770256107,-1500.0,0.0002098,7]
[363568540,1748770256117,-1500.0,0.0002098,7]
[363568542,1748770256126,-1500.0,0.0002098,7]
[363568543,1748770256135,-1500.0,0.0002098,7]
[363568544,1748770256144,-1500.0,0.0002098,7]
[363568547,1748770256154,-1500.0,0.0002098,7]
[363568549,1748770256165,-1500.0,0.0002098,7]
[363568550,1748770256174,-1500.0,0.0002098,7]
[363568552,1748770256184,-1500.0,0.0002098,7]
[363568554,1748770256194,-1500.0,0.0002098,7]
[363568556,1748770256204,-1500.0,0.0002098,7]
[363568559,1748770256215,-1500.0,0.0002098,7]
[363568561,1748770256225,-1500.0,0.0002098,7]
[363568563,1748770256240,-1500.0,0.0002098,7]
[363568564,1748770256250,-1500.0,0.0002098,7]
[363568566,1748770256260,-1500.0,0.0002098,7]
[363568568,1748770256271,-1500.0,0.0002098,7]
[363568570,1748770256281,-1500.0,0.0002098,7]
[363568572,1748770256292,-1500.0,0.0002098,7]
[363568574,1748770256303,-1500.0,0.0002098,7]
[363568576,1748770256314,-1500.0,0.0002098,7]
[363568578,1748770256324,-1500.0,0.0002098,7]
[363568580,1748770256335,-1500.0,0.0002098,7]
[363568582,1748770256346,-1500.0,0.0002098,7]
[363568584,1748770256356,-1500.0,0.0002098,7]
[363568586,1748770256367,-1500.0,0.0002098,7]
[363568589,1748770256380,-1500.0,0.0002098,7]
[363568591,1748770256390,-1500.0,0.0002098,7]
[363568593,1748770256400,-1500.0,0.0002098,7]
[363568594,1748770256411,-1500.0,0.0002098,7]
[363568596,1748770256422,-1500.0,0.0002098,7]
[363568598,1748770256432,-1500.0,0.0002098,7]
[363568600,1748770256442,-1500.0,0.0002098,7]
[363568602,1748770256452,-1500.0,0.0002098,7]
[363568604,1748770256463,-1500.0,0.0002098,7]
[363568607,1748770256473,-1500.0,0.0002098,7]
[363568608,1748770256487,-1500.0,0.0002098,7]
[363568610,1748770256496,-1500.0,0.0002098,7]
[363568612,1748770256506,-1500.0,0.0002098,7]
[363568614,1748770256516,-1500.0,0.0002098,7]
[363568616,1748770256526,-1500.0,0.0002098,7]
[363568619,1748770256537,-1500.0,0.0002098,7]
[363568621,1748770256548,-1500.0,0.0002098,7]
[363568623,1748770256558,-1500.0,0.0002098,7]
[363568625,1748770256569,-1500.0,0.0002098,7]
[363568627,1748770256579,-169.196033,0.0002098,2]
[363568628,1748770256589,-1500.0,0.0002098,7]
[363568630,1748770256599,-1500.0,0.0002098,7]
[363568632,1748770256608,-1500.0,0.0002098,7]
[363568634,1748770256618,-1500.0,0.0002098,7]
[363568636,1748770256628,-1500.0,0.0002098,7]
[363568638,1748770256638,-1500.0,0.0002098,7]
[363568640,1748770256647,-1500.0,0.0002098,7]
[363568642,1748770256657,-1500.0,0.0002098,7]
[363568644,1748770256667,-1500.0,0.0002098,7]
[363568646,1748770256677,-1500.0,0.0002098,7]
[363568648,1748770256686,-1500.0,0.0002098,7]
[363568650,1748770256695,-169.196033,0.0002098,2]
[363568652,1748770256705,-1500.0,0.0002098,7]
[363568654,1748770256715,-1500.0,0.0002098,7]
[363568656,1748770256725,-1500.0,0.0002098,7]
[363568658,1748770256738,-1500.0,0.0002098,7]
[363568660,1748770256748,-1500.0,0.0002098,7]
[363568662,1748770256758,-1500.0,0.0002098,7]
[363568664,1748770256768,-1000.0,0.0002098,5]
[363568666,1748770256778,-1500.0,0.0002098,7]
[363568668,1748770256787,-1500.0,0.0002098,7]
[363568670,1748770256797,-1500.0,0.0002098,7]
[363568672,1748770256807,-1500.0,0.0002098,7]
[363568674,1748770256817,-1500.0,0.0002098,7]
[363568676,1748770256827,-1500.0,0.0002098,7]
[363568678,1748770256837,-1500.0,0.0002098,7]
[363568680,1748770256847,-1330.82279,0.0002098,7]
[363568682,1748770256857,-151.0,0.0002098,2]
[363568684,1748770256866,-151.0,0.0002098,2]
[363568687,1748770256876,-151.0,0.0002098,2]
[363568689,1748770256886,-151.0,0.0002098,2]
[363568691,1748770256896,-1074.688167,0.0002098,2]
[363568692,1748770256906,-1074.688167,0.0002098,2]
[363568695,1748770256917,-151.0,0.0002098,2]
[363568697,1748770256928,-151.0,0.0002098,2]
[363568698,1748770256938,-531.055359,0.0002098,2]
[363568700,1748770256949,-1526.316205,0.0002098,2]
[363568703,1748770256961,-531.055362,0.0002098,2]
[363568704,1748770256972,-359.960833,0.0002098,2]
[363568706,1748770256987,-1526.31619982,0.0002098,2]
[363568709,1748770256997,-359.960838,0.0002098,2]
[363568711,1748770257006,-19440.26615121,0.00021,2]
[363568712,1748770257016,-10000.0,0.00021,10]
[363568714,1748770257026,-10000.0,0.00021,10]
[363568717,1748770257037,-10000.0,0.00021,10]
[363568718,1748770257046,-10000.0,0.00021,10]
[363568720,1748770257055,-10000.0,0.00021,10]
[363568722,1748770257065,-10000.0,0.00021,10]
[363568724,1748770257075,-10000.0,0.00021,10]
[363568726,1748770257084,-10000.0,0.00021,10]
[363568728,1748770257093,-10000.0,0.00021,10]
[363568730,1748770257103,-10000.0,0.00021,10]
[363568732,1748770257112,-10000.0,0.00021,10]
[363568734,1748770257122,-10000.0,0.00021,10]
[363568736,1748770257131,-10000.0,0.00021,10]
[363568738,1748770257141,-10000.0,0.00021,10]
[363568740,1748770257151,-10000.0,0.00021,10]
[363568743,1748770257160,-1676.211,0.00021,10]
[363568745,1748770257170,-2513.7900692,0.00021,2]
[363568747,1748770257180,-3000.0,0.00021,2]
[363568749,1748770257190,-173.65,0.00021,2]
[363568751,1748770257199,-173.65,0.00021,2]
[363568753,1748770257208,-151.0,0.00021,2]
[363568765,1748770257322,-151.0,0.00021,2]
[363568767,1748770257335,-151.0,0.00021,2]
[363568769,1748770257345,-151.0,0.00021,2]
[363568771,1748770257355,-151.0,0.00021,2]
[363568773,1748770257364,-151.0,0.00021,2]
[363568775,1748770257373,-475.959135,0.00021,2]
[363568777,1748770257383,-475.959135,0.00021,2]
[363568779,1748770257392,-475.959135,0.00021,2]
[363568781,1748770257402,-475.959135,0.00021,2]
[363568783,1748770257411,-151.0,0.00021,2]
[363568785,1748770257421,-151.0,0.00021,2]
[363568787,1748770257430,-151.0,0.00021,2]
[363568789,1748770257440,-151.0,0.00021,2]
[363568791,1748770257450,-151.0,0.00021,2]
[363568793,1748770257460,-151.0,0.00021,2]
[363568795,1748770257469,-161.262007,0.00021,2]
[363568797,1748770257481,-161.262007,0.00021,2]
[363568799,1748770257491,-161.262007,0.00021,2]
[363568801,1748770257501,-161.262007,0.00021,2]
[363568803,1748770257511,-161.262007,0.00021,2]
[363568805,1748770257520,-161.262007,0.00021,2]
[363568807,1748770257530,-299.041725,0.00021,2]
[363568809,1748770257540,-299.041725,0.00021,2]
[363568811,1748770257550,-299.041725,0.00021,2]
[363568813,1748770257559,-299.041725,0.00021,2]
[363568815,1748770257568,-299.041725,0.00021,2]
[363568817,1748770257578,-299.041725,0.00021,2]
[363568819,1748770257588,-345.077216,0.00021,2]
[363568821,1748770257597,-345.077216,0.00021,2]
[363568823,1748770257607,-876.284792,0.00021,2]
[363568825,1748770257616,-876.284792,0.00021,2]
[363568827,1748770257627,-296.0,0.00021,2]
[363568829,1748770257637,-603.885838,0.00021,2]
[363568831,1748770257647,-603.885838,0.00021,2]
[363568833,1748770257657,-603.885838,0.00021,2]
[363568835,1748770257666,-603.885833,0.00021,2]
[363568837,1748770257677,-192.102102,0.00021,2]
[363568839,1748770257686,-192.102102,0.00021,2]
[363568841,1748770257696,-192.102102,0.00021,2]
[363568843,1748770257705,-192.102095,0.00021,2]
[363568845,1748770257715,-151.0,0.00021,2]
[363568847,1748770257724,-151.0,0.00021,2]
[363568849,1748770257738,-151.0,0.00021,2]
[363568851,1748770257747,-151.0,0.00021,2]
[363568853,1748770257756,-151.0,0.00021,2]
[363568855,1748770257766,-151.0,0.00021,2]
[363568857,1748770257776,-169.196033,0.00021,2]
[363568859,1748770257786,-169.196033,0.00021,2]
[363568861,1748770257796,-169.196033,0.00021,2]
[363568863,1748770257805,-169.196033,0.00021,2]
[363568865,1748770257815,-1000.0,0.00021,5]
[363568867,1748770257825,-151.0,0.00021,2]
[363568869,1748770257834,-151.0,0.00021,2]
[363568871,1748770257844,-151.0,0.00021,2]
[363568873,1748770257854,-151.0,0.00021,2]
[363568875,1748770257864,-151.0,0.00021,2]
[363568877,1748770257874,-151.0,0.00021,2]
[363568880,1748770257884,-151.0,0.00021,2]
[363568881,1748770257893,-209.777543,0.00021,2]